[Event "DVM U12w 2024"]
[Site "Bad Homburg"]
[Date "2024.12.29"]
[Round "5"]
[White "Haas, Valentina"]
[Black "Schindler, Mailin"]
[Result "1/2-1/2"]
[ECO "C28"]
[WhiteElo "974"]
[BlackElo "884"]
[Annotator "NA"]
[PlyCount "41"]
[EventDate "2024.12.23"]
[EventType "team-tourn"]
[EventRounds "7"]
[EventCountry "GER"]
[SourceTitle "playchess.com"]
[Source "ChessBase"]
[SourceQuality "1"]
[TimeControl "40/5400+30:1800+30"]

1. e4 {[%emt 0:00:02]} e5 {[%emt 0:00:06]} 2. Nc3 {[%emt 0:00:08]} Nc6 {[%emt 0:00:09]} 3. Bc4 {[%emt 0:00:08]} Nf6 {[%emt 0:00:12]} 4. d3 {[%emt 0:00:11]} Bc5 {[%emt 0:00:13]} 5. f4 {[%emt 0:00:13]} exf4 {[%emt 0:00:19]} 6. Bxf4 {[%emt 0:00:09]} d6 {[%emt 0:00:10]} 7. Nf3 {[%emt 0:00:14]} Bg4 {[%emt 0:00:11]} 8. h3 {[%emt 0:00:19]} Bh5 {[%emt 0:00:11]} 9. g4 {[%emt 0:00:11]} Bg6 {[%emt 0:00:15]} 10. Qd2 {[%emt 0:00:24]} h6 {[%emt 0:00:23]} 11. Na4 {[%emt 0:00:25]} Bb4 {[%emt 0:00:10]} 12. c3 {[%emt 0:00:20]} Bc5 {[%emt 0:00:10]} 13. d4 {[%emt 0:00:23]} Bb6 {[%emt 0:00:13]} 14. Nxb6 {[%emt 0:00:53]} cxb6 {[%emt 0:00:06]} 15. Bd3 {[%emt 0:00:46]} O-O {[%emt 0:00:16]} 16. O-O-O {[%emt 0:00:47]} Re8 {[%emt 0:00:17]} 17. Rde1 {[%emt 0:03:39]} Rc8 {[%emt 0:00:45]} 18. a3 {[%emt 0:00:21]} Nxe4 {[%emt 0:00:32]} 19. Bxe4 {[%emt 0:00:27]} Bxe4 {[%emt 0:00:09]} 20. Qf2 {[%emt 0:00:50]} Bxf3 {[%emt 0:00:19]} 21. Qxf3 {[%emt 0:00:09]} 1/2-1/2

[Event "DVM U12w 2024"]
[Site "Bad Homburg"]
[Date "2024.12.29"]
[Round "5"]
[White "Kuznetsova, Sofia"]
[Black "Frank, Elisa"]
[Result "1-0"]
[ECO "C50"]
[WhiteElo "926"]
[BlackElo "801"]
[Annotator "NA"]
[PlyCount "22"]
[EventDate "2024.12.23"]
[EventType "team-tourn"]
[EventRounds "7"]
[EventCountry "GER"]
[SourceTitle "playchess.com"]
[Source "ChessBase"]
[SourceQuality "1"]
[TimeControl "40/5400+30:1800+30"]

1. e4 {[%emt 0:00:03]} e5 {[%emt 0:00:03]} 2. Nf3 {[%emt 0:00:02]} Nc6 {[%emt 0:00:08]} 3. Bc4 {[%emt 0:00:07]} Bc5 {[%emt 0:00:19]} 4. d3 {[%emt 0:00:06]} Nf6 {[%emt 0:00:10]} 5. O-O {[%emt 0:00:08]} O-O {[%emt 0:00:04]} 6. h3 {[%emt 0:00:02]} h6 {[%emt 0:00:10]} 7. Nc3 {[%emt 0:00:05]} d6 {[%emt 0:00:38]} 8. Be3 {[%emt 0:01:30]} Bxe3 {[%emt 0:01:03]} 9. fxe3 {[%emt 0:00:09]} Be6 {[%emt 0:00:32]} 10. Bb3 {[%emt 0:00:20]} d5 {[%emt 0:01:31]} 11. Kh1 {[%emt 0:06:08]} d4 {[%emt 0:01:32]} 1-0

[Event "DVM U12w 2024"]
[Site "Bad Homburg"]
[Date "2024.12.29"]
[Round "5"]
[White "Dinges, Mara"]
[Black "He, Siqi"]
[Result "1-0"]
[ECO "D02"]
[WhiteElo "854"]
[BlackElo "870"]
[Annotator "NA"]
[PlyCount "26"]
[EventDate "2024.12.23"]
[EventType "team-tourn"]
[EventRounds "7"]
[EventCountry "GER"]
[SourceTitle "playchess.com"]
[Source "ChessBase"]
[SourceQuality "1"]
[TimeControl "40/5400+30:1800+30"]

1. d4 {[%emt 0:00:03]} d5 {[%emt 0:00:09]} 2. Bf4 {[%emt 0:00:15]} Bf5 {[%emt 0:00:09]} 3. e3 {[%emt 0:00:18]} e6 {[%emt 0:00:09]} 4. Nf3 {[%emt 0:00:09]} Nf6 {[%emt 0:00:11]} 5. Bd3 {[%emt 0:00:17]} Bg6 {[%emt 0:00:08]} 6. c3 {[%emt 0:00:18]} c5 {[%emt 0:00:10]} 7. Bb5+ {[%emt 0:02:03]} Nc6 {[%emt 0:00:13]} 8. Ne5 {[%emt 0:00:43]} Rc8 {[%emt 0:00:52]} 9. Nd2 {[%emt 0:01:09]} Be7 {[%emt 0:00:48]} 10. c4 {[%emt 0:01:33]} O-O {[%emt 0:00:22]} 11. Nb3 {[%emt 0:02:01]} a6 {[%emt 0:00:26]} 12. Bxc6 {[%emt 0:00:35]} bxc6 {[%emt 0:00:24]} 13. O-O {[%emt 0:01:31]} cxd4 {[%emt 0:01:19]} 1-0

[Event "DVM U12w 2024"]
[Site "Bad Homburg"]
[Date "2024.12.29"]
[Round "5"]
[White "Rempel, Katharina"]
[Black "Lorenz, Mina"]
[Result "1-0"]
[ECO "D00"]
[WhiteElo "851"]
[BlackElo "776"]
[Annotator "NA"]
[PlyCount "69"]
[EventDate "2024.12.23"]
[EventType "team-tourn"]
[EventRounds "7"]
[EventCountry "GER"]
[SourceTitle "playchess.com"]
[Source "ChessBase"]
[SourceQuality "1"]
[TimeControl "40/5400+30:1800+30"]

1. d4 {[%emt 0:00:03]} d5 {[%emt 0:00:09]} 2. Nc3 {[%emt 0:00:06]} Nf6 {[%emt 0:00:08]} 3. Bf4 {[%emt 0:00:08]} Bf5 {[%emt 0:00:07]} 4. f3 {[%emt 0:00:12]} e6 {[%emt 0:00:09]} 5. g4 {[%emt 0:00:21]} Bg6 {[%emt 0:00:07]} 6. h4 {[%emt 0:00:22]} h5 {[%emt 0:00:11]} 7. g5 {[%emt 0:00:11]} Nfd7 {[%emt 0:00:20]} 8. e3 {[%emt 0:00:38]} Bd6 {[%emt 0:00:54]} 9. Bxd6 {[%emt 0:01:01]} cxd6 {[%emt 0:00:17]} 10. Bd3 {[%emt 0:00:17]} Nc6 {[%emt 0:09:40]} 11. a3 {[%emt 0:04:25]} Qc7 {[%emt 0:06:13]} 12. Nge2 {[%emt 0:04:35]} Rc8 {[%emt 0:03:05]} 13. Qd2 {[%emt 0:08:25]} f6 {[%emt 0:07:44]} 14. Bxg6+ {[%emt 0:02:16]} Kf8 {[%emt 0:00:26]} 15. gxf6 {[%emt 0:02:40]} Nxf6 {[%emt 0:01:11]} 16. Nf4 {[%emt 0:01:31]} Qe7 {[%emt 0:01:23]} 17. Qd3 {[%emt 0:04:30]} Rc7 {[%emt 0:16:21]} 18. Rg1 {[%emt 0:01:19]} Rh6 {[%emt 0:03:24]} 19. Rg5 {[%emt 0:02:48]} Qd7 {[%emt 0:04:01]} 20. Bxh5 {[%emt 0:01:52]} Nxh5 {[%emt 0:04:14]} 21. Nxh5 {[%emt 0:00:13]} Qf7 {[%emt 0:02:18]} 22. Nf4 {[%emt 0:05:47]} Ne7 {[%emt 0:01:24]} 23. h5 {[%emt 0:01:54]} e5 {[%emt 0:01:03]} 24. dxe5 {[%emt 0:04:57]} dxe5 {[%emt 0:10:57]} 25. Rxe5 {[%emt 0:00:48]} Rc5 {[%emt 0:04:02]} 26. Nfxd5 {[%emt 0:05:10]} b6 {[%emt 0:03:38]} 27. Rd1 {[%emt 0:04:01]} Qxf3 {[%emt 0:01:56]} 28. Rxe7 {[%emt 0:05:07]} Rxh5 {[%emt 0:03:45]} 29. Qe2 {[%emt 0:10:13]} Qh3 {[%emt 0:12:22]} 30. Nf4 {[%emt 0:00:50]} Qg3+ {[%emt 0:00:36]} 31. Qf2 {[%emt 0:02:45]} Rh1+ {[%emt 0:01:21]} 32. Ke2 {[%emt 0:00:26]} Qh2 {[%emt 0:01:21]} 33. Ng6+ {[%emt 0:02:34]} Kg8 {[%emt 0:00:19]} 34. Rxh1 {[%emt 0:01:35]} Qxh1 {[%emt 0:00:39]} 35. Qf7+ {[%emt 0:00:56]} 1-0

[Event "DVM U12w 2024"]
[Site "Bad Homburg"]
[Date "2024.12.29"]
[Round "5"]
[White "Nuzhnaia, Daria"]
[Black "Elsayed Esam, Sally"]
[Result "0-1"]
[ECO "B13"]
[WhiteElo "831"]
[BlackElo "1563"]
[Annotator "NA"]
[PlyCount "56"]
[EventDate "2024.12.23"]
[EventType "team-tourn"]
[EventRounds "7"]
[EventCountry "GER"]
[SourceTitle "playchess.com"]
[Source "ChessBase"]
[SourceQuality "1"]
[TimeControl "40/5400+30:1800+30"]

1. e4 {[%emt 0:00:02]} c6 {[%emt 0:00:13]} 2. d4 {[%emt 0:00:07]} d5 {[%emt 0:00:11]} 3. exd5 {[%emt 0:00:07]} cxd5 {[%emt 0:00:17]} 4. c3 {[%emt 0:00:09]} Nf6 {[%emt 0:00:34]} 5. Bd3 {[%emt 0:00:14]} Qc7 {[%emt 0:01:07]} 6. Nf3 {[%emt 0:00:36]} Bg4 {[%emt 0:00:11]} 7. h3 {[%emt 0:00:14]} Bh5 {[%emt 0:00:08]} 8. O-O {[%emt 0:00:12]} e6 {[%emt 0:00:22]} 9. Nbd2 {[%emt 0:00:13]} Bd6 {[%emt 0:00:20]} 10. Qc2 {[%emt 0:01:24]} O-O {[%emt 0:01:23]} 11. Re1 {[%emt 0:01:30]} Nbd7 {[%emt 0:00:36]} 12. b3 {[%emt 0:00:38]} e5 {[%emt 0:01:36]} 13. dxe5 {[%emt 0:01:11]} Nxe5 {[%emt 0:00:26]} 14. Nxe5 {[%emt 0:00:45]} Bxe5 {[%emt 0:00:23]} 15. Nf3 {[%emt 0:00:44]} Bxf3 {[%emt 0:00:14]} 16. gxf3 {[%emt 0:00:36]} Bh2+ {[%emt 0:00:24]} 17. Kf1 {[%emt 0:00:28]} Rfe8 {[%emt 0:00:08]} 18. Bg5 {[%emt 0:01:22]} Qd7 {[%emt 0:03:07]} 19. Rxe8+ {[%emt 0:04:27]} Rxe8 {[%emt 0:00:53]} 20. Be2 {[%emt 0:00:33]} Qxh3+ {[%emt 0:00:37]} 21. Ke1 {[%emt 0:00:23]} Qxf3 {[%emt 0:00:53]} 22. c4 {[%emt 0:02:00]} Qh1+ {[%emt 0:02:15]} 23. Kd2 {[%emt 0:01:30]} Ne4+ {[%emt 0:00:00]} 24. Kd3 {[%emt 0:00:45]} Nxf2+ {[%emt 0:00:15]} 25. Kd2 {[%emt 0:00:49]} Qxa1 {[%emt 0:00:14]} 26. cxd5 {[%emt 0:00:49]} Qd4+ {[%emt 0:00:27]} 27. Bd3 {[%emt 0:00:57]} Ne4+ {[%emt 0:01:22]} 28. Kd1 {[%emt 0:06:09]} Nxg5 {[%emt 0:00:57]} 0-1

[Event "DVM U12w 2024"]
[Site "Bad Homburg"]
[Date "2024.12.29"]
[Round "5"]
[White "Dennhardt, Mira"]
[Black "Augustin, Luisa"]
[Result "1/2-1/2"]
[ECO "C50"]
[WhiteElo "830"]
[BlackElo "797"]
[Annotator "NA"]
[PlyCount "79"]
[EventDate "2024.12.23"]
[EventType "team-tourn"]
[EventRounds "7"]
[EventCountry "GER"]
[SourceTitle "playchess.com"]
[Source "ChessBase"]
[SourceQuality "1"]
[TimeControl "40/5400+30:1800+30"]

1. e4 {[%emt 0:00:03]} e5 {[%emt 0:00:05]} 2. Nc3 {[%emt 0:00:25]} Nf6 {[%emt 0:00:10]} 3. Bc4 {[%emt 0:00:30]} Bc5 {[%emt 0:00:23]} 4. Nf3 {[%emt 0:00:20]} Nc6 {[%emt 0:00:12]} 5. O-O {[%emt 0:00:26]} d6 {[%emt 0:00:09]} 6. d3 {[%emt 0:00:10]} h6 {[%emt 0:00:11]} 7. Bd2 {[%emt 0:01:12]} b6 {[%emt 0:02:41]} 8. h3 {[%emt 0:01:13]} g5 {[%emt 0:00:14]} 9. Qe1 {[%emt 0:04:08]} g4 {[%emt 0:00:34]} 10. Qe2 {[%emt 0:02:09]} gxf3 {[%emt 0:02:25]} 11. Qxf3 {[%emt 0:01:08]} Nd4 {[%emt 0:03:45]} 12. Qg3 {[%emt 0:01:48]} Bb4 {[%emt 0:01:04]} 13. Qg7 {[%emt 0:02:23]} Rf8 {[%emt 0:01:05]} 14. Qxh6 {[%emt 0:01:08]} Bxc3 {[%emt 0:03:08]} 15. Bxc3 {[%emt 0:01:20]} Ne2+ {[%emt 0:00:19]} 16. Kh1 {[%emt 0:01:53]} Nxc3 {[%emt 0:00:45]} 17. bxc3 {[%emt 0:00:24]} d5 {[%emt 0:00:34]} 18. exd5 {[%emt 0:02:49]} Nxd5 {[%emt 0:00:29]} 19. Bxd5 {[%emt 0:00:36]} Qxd5 {[%emt 0:00:11]} 20. c4 {[%emt 0:00:18]} Qb7 {[%emt 0:00:44]} 21. Rae1 {[%emt 0:00:49]} Rg8 {[%emt 0:00:31]} 22. Rxe5+ {[%emt 0:00:58]} Be6 {[%emt 0:01:06]} 23. Rg1 {[%emt 0:01:02]} O-O-O {[%emt 0:02:40]} 24. d4 {[%emt 0:03:25]} Rxd4 {[%emt 0:00:52]} 25. c5 {[%emt 0:02:37]} Rd1 {[%emt 0:01:23]} 26. f3 {[%emt 0:02:01]} Rd2 {[%emt 0:01:49]} 27. Qxd2 {[%emt 0:01:56]} Bxa2 {[%emt 0:03:25]} 28. Rge1 {[%emt 0:01:20]} Qc6 {[%emt 0:00:35]} 29. Qe2 {[%emt 0:01:40]} Kd8 {[%emt 0:00:38]} 30. h4 {[%emt 0:02:42]} f6 {[%emt 0:00:30]} 31. Re4 {[%emt 0:00:30]} Bd5 {[%emt 0:02:05]} 32. Re3 {[%emt 0:03:55]} Rh8 {[%emt 0:00:30]} 33. Kg1 {[%emt 0:00:30]} Qxc5 {[%emt 0:00:00]} 34. Kf1 {[%emt 0:02:03]} Bc4 {[%emt 0:00:00]} 35. Rd3+ {[%emt 0:00:44]} Bxd3 {[%emt 0:00:00]} 36. Qxd3+ {[%emt 0:00:31]} Qd6 {[%emt 0:00:00]} 37. Qxd6+ {[%emt 0:02:31]} cxd6 {[%emt 0:00:00]} 38. g3 {[%emt 0:00:34]} a5 {[%emt 0:00:00]} 39. Rd1 {[%emt 0:00:08]} Kd7 {[%emt 0:00:14]} 40. Kg2 {[%emt 0:00:28]} 1/2-1/2

[Event "DVM U12w 2024"]
[Site "Bad Homburg"]
[Date "2024.12.29"]
[Round "5"]
[White "Gelbach, Amelia"]
[Black "Winkler, Anni"]
[Result "0-1"]
[ECO "B02"]
[WhiteElo "809"]
[BlackElo "1404"]
[Annotator "NA"]
[PlyCount "65"]
[EventDate "2024.12.23"]
[EventType "team-tourn"]
[EventRounds "7"]
[EventCountry "GER"]
[SourceTitle "playchess.com"]
[Source "ChessBase"]
[SourceQuality "1"]
[TimeControl "40/5400+30:1800+30"]

1. e4 {[%emt 0:00:02]} d5 {[%emt 0:01:10]} 2. Nc3 {[%emt 0:02:45]} Nf6 {[%emt 0:08:22]} 3. Bd3 {[%emt 0:10:51]} c5 {[%emt 0:06:21]} 4. e5 {[%emt 0:14:42]} d4 {[%emt 0:02:44]} 5. exf6 {[%emt 0:04:24]} dxc3 {[%emt 0:00:37]} 6. bxc3 {[%emt 0:00:25]} exf6 {[%emt 0:00:44]} 7. Nf3 {[%emt 0:06:40]} Bd6 {[%emt 0:01:58]} 8. O-O {[%emt 0:02:30]} O-O {[%emt 0:00:20]} 9. Re1 {[%emt 0:02:52]} Nc6 {[%emt 0:04:14]} 10. h3 {[%emt 0:04:48]} a6 {[%emt 0:02:01]} 11. Be4 {[%emt 0:02:54]} Ne5 {[%emt 0:01:44]} 12. d4 {[%emt 0:02:08]} Nxf3+ {[%emt 0:00:52]} 13. Qxf3 {[%emt 0:00:48]} Re8 {[%emt 0:01:42]} 14. Ba3 {[%emt 0:00:53]} cxd4 {[%emt 0:01:33]} 15. Bxd6 {[%emt 0:00:49]} Qxd6 {[%emt 0:00:18]} 16. cxd4 {[%emt 0:01:03]} Rb8 {[%emt 0:04:21]} 17. Rab1 {[%emt 0:04:18]} b5 {[%emt 0:03:18]} 18. Bxh7+ {[%emt 0:04:51]} Kf8 {[%emt 0:02:39]} 19. Rxe8+ {[%emt 0:00:21]} Kxe8 {[%emt 0:00:16]} 20. Re1+ {[%emt 0:00:14]} Kf8 {[%emt 0:00:59]} 21. c3 {[%emt 0:09:36]} g6 {[%emt 0:02:37]} 22. Qd3 {[%emt 0:01:34]} Bf5 {[%emt 0:00:43]} 23. Qd2 {[%emt 0:00:29]} Kg7 {[%emt 0:00:38]} 24. Bg8 {[%emt 0:01:05]} Rxg8 {[%emt 0:00:30]} 25. g4 {[%emt 0:01:57]} Bd7 {[%emt 0:00:53]} 26. h4 {[%emt 0:01:02]} Bxg4 {[%emt 0:00:31]} 27. Re4 {[%emt 0:01:36]} Bf5 {[%emt 0:00:39]} 28. Rf4 {[%emt 0:00:49]} Rh8 {[%emt 0:00:54]} 29. Qe3 {[%emt 0:00:49]} Bd3 {[%emt 0:01:56]} 30. Rg4 {[%emt 0:02:40]} Bc4 {[%emt 0:01:30]} 31. f4 {[%emt 0:02:41]} f5 {[%emt 0:00:37]} 32. Rg2 {[%emt 0:00:59]} Rxh4 {[%emt 0:00:21]} 33. Rf2 {[%emt 0:01:17]} 0-1

[Event "DVM U12w 2024"]
[Site "Bad Homburg"]
[Date "2024.12.29"]
[Round "5"]
[White "Schindler, Amilia"]
[Black "Nehrukumar, Rithika"]
[Result "0-1"]
[ECO "C50"]
[WhiteElo "790"]
[BlackElo "1147"]
[Annotator "NA"]
[PlyCount "23"]
[EventDate "2024.12.23"]
[EventType "team-tourn"]
[EventRounds "7"]
[EventCountry "GER"]
[SourceTitle "playchess.com"]
[Source "ChessBase"]
[SourceQuality "1"]
[TimeControl "40/5400+30:1800+30"]

1. e4 {[%emt 0:00:02]} e5 {[%emt 0:00:04]} 2. Nf3 {[%emt 0:00:08]} Nc6 {[%emt 0:00:04]} 3. Bc4 {[%emt 0:00:07]} Bc5 {[%emt 0:00:07]} 4. Nc3 {[%emt 0:00:13]} d6 {[%emt 0:02:18]} 5. h3 {[%emt 0:00:18]} h6 {[%emt 0:00:14]} 6. O-O {[%emt 0:00:08]} Nf6 {[%emt 0:00:08]} 7. d3 {[%emt 0:00:09]} O-O {[%emt 0:00:11]} 8. Be3 {[%emt 0:02:07]} Bb6 9. d4 {[%emt 0:00:00]} Nxe4 {[%emt 0:06:33]} 10. d5 {[%emt 0:00:05]} Nxc3 {[%emt 0:01:39]} 11. bxc3 {[%emt 0:00:10]} Ne7 {[%emt 0:00:17]} 12. Qd3 {[%emt 0:00:47]} 0-1

[Event "DVM U12w 2024"]
[Site "Bad Homburg"]
[Date "2024.12.29"]
[Round "5"]
[White "Winkler, Helena"]
[Black "Senthilkumar, Vasanthi"]
[Result "1-0"]
[ECO "C47"]
[WhiteElo "778"]
[BlackElo "818"]
[Annotator "NA"]
[PlyCount "84"]
[EventDate "2024.12.23"]
[EventType "team-tourn"]
[EventRounds "7"]
[EventCountry "GER"]
[SourceTitle "playchess.com"]
[Source "ChessBase"]
[SourceQuality "1"]
[TimeControl "40/5400+30:1800+30"]

1. e4 {[%emt 0:00:04]} e5 {[%emt 0:00:07]} 2. Nf3 {[%emt 0:00:04]} Nc6 {[%emt 0:00:11]} 3. Nc3 {[%emt 0:00:10]} Bc5 {[%emt 0:00:16]} 4. Be2 {[%emt 0:00:14]} Nf6 {[%emt 0:00:30]} 5. O-O {[%emt 0:00:30]} d6 {[%emt 0:00:30]} 6. d3 {[%emt 0:00:30]} h6 {[%emt 0:00:00]} 7. Be3 {[%emt 0:00:00]} Bxe3 {[%emt 0:00:20]} 8. fxe3 {[%emt 0:00:01]} O-O {[%emt 0:00:30]} 9. d4 {[%emt 0:00:30]} Bg4 {[%emt 0:00:32]} 10. dxe5 {[%emt 0:00:20]} dxe5 {[%emt 0:00:30]} 11. h3 {[%emt 0:00:30]} Bh5 {[%emt 0:00:30]} 12. Nh4 {[%emt 0:00:30]} Bxe2 {[%emt 0:00:30]} 13. Qxe2 {[%emt 0:00:30]} Re8 {[%emt 0:00:00]} 14. Rad1 {[%emt 0:00:00]} Qe7 {[%emt 0:00:16]} 15. Nf5 {[%emt 0:00:24]} Qe6 {[%emt 0:00:30]} 16. Qf3 {[%emt 0:00:30]} Rad8 {[%emt 0:00:30]} 17. Qg3 {[%emt 0:00:30]} g6 {[%emt 0:00:30]} 18. Nxh6+ {[%emt 0:00:30]} Kf8 {[%emt 0:00:30]} 19. Rxd8 {[%emt 0:00:30]} Rxd8 {[%emt 0:00:30]} 20. Rd1 {[%emt 0:00:30]} Rxd1+ {[%emt 0:00:30]} 21. Nxd1 {[%emt 0:00:30]} Nh5 {[%emt 0:01:35]} 22. Qg5 {[%emt 0:00:29]} f6 {[%emt 0:00:52]} 23. Qxg6 {[%emt 0:00:20]} Ne7 {[%emt 0:00:30]} 24. Qxh5 {[%emt 0:00:30]} f5 {[%emt 0:00:30]} 25. exf5 {[%emt 0:00:30]} Nxf5 {[%emt 0:00:30]} 26. Nxf5 {[%emt 0:00:30]} Qd5 {[%emt 0:01:38]} 27. Nc3 {[%emt 0:00:00]} Qd2 {[%emt 0:01:16]} 28. Qh8+ {[%emt 0:00:04]} Kf7 {[%emt 0:00:30]} 29. g4 {[%emt 0:02:01]} Qxc2 {[%emt 0:00:33]} 30. g5 {[%emt 0:00:00]} Qxf5 {[%emt 0:00:17]} 31. Qh5+ {[%emt 0:00:00]} Ke7 {[%emt 0:00:34]} 32. Nd5+ {[%emt 0:00:00]} Kd6 {[%emt 0:00:57]} 33. Nc3 {[%emt 0:00:05]} c5 {[%emt 0:00:52]} 34. Nb5+ {[%emt 0:00:18]} Kc6 {[%emt 0:00:17]} 35. Qe8+ {[%emt 0:00:19]} Kd5 {[%emt 0:00:28]} 36. Nc7+ {[%emt 0:00:30]} Ke4 {[%emt 0:00:24]} 37. g6 {[%emt 0:00:41]} Qg5+ {[%emt 0:00:22]} 38. Kf1 {[%emt 0:00:23]} Qxe3 {[%emt 0:00:35]} 39. g7 {[%emt 0:00:22]} Qf3+ {[%emt 0:00:56]} 40. Ke1 {[%emt 0:00:24]} Ke3 {[%emt 0:00:24]} 41. Qb5 {[%emt 0:30:17]} a6 {[%emt 0:31:02]} 42. Qc4 {[%emt 0:00:23]} b5 {[%emt 0:02:19]} 1-0